[Event "*** SCC Grand Prix: Titled Tuesday Blitz"]
[Site "Chess.com"]
[Date "2020.06.09"]
[Round "9"]
[White "Bubachess1608"]
[Black "Chess2019Player"]
[Result "1-0"]
[WhiteElo "2282"]
[BlackElo "2162"]
[TimeControl "180+1"]
[EndTime "10:47:55 PDT"]
[Termination "Bubachess1608 won on time"]

1. e4 {[%clk 0:02:56.6]} 1... e6 {[%clk 0:02:59.7]} 2. d3 {[%clk 0:02:53.7]}
2... d5 {[%clk 0:02:58.1]} 3. Nd2 {[%clk 0:02:53.5]} 3... Nf6 {[%clk 0:02:58]}
4. Ngf3 {[%clk 0:02:53.1]} 4... b6 {[%clk 0:02:50.8]} 5. g3 {[%clk 0:02:52.5]}
5... dxe4 {[%clk 0:02:44.4]} 6. dxe4 {[%clk 0:02:50.8]} 6... Bc5 {[%clk
0:02:44.7]} 7. Bg2 {[%clk 0:02:48.7]} 7... Ba6 {[%clk 0:02:44.2]} 8. Bf1 {[%clk
0:02:44.3]} 8... Bb7 {[%clk 0:02:41]} 9. Bb5+ {[%clk 0:02:43.5]} 9... Bc6 {[%clk
0:02:39.1]} 10. Bd3 {[%clk 0:02:41.4]} 10... O-O {[%clk 0:02:34.8]} 11. O-O
{[%clk 0:02:40.7]} 11... Nbd7 {[%clk 0:02:32.1]} 12. Qe2 {[%clk 0:02:40.2]}
12... e5 {[%clk 0:02:31.4]} 13. c3 {[%clk 0:02:38.2]} 13... a5 {[%clk
0:02:29.7]} 14. a4 {[%clk 0:02:36.8]} 14... Qe7 {[%clk 0:02:22.7]} 15. Bb5
{[%clk 0:02:34.9]} 15... Bxb5 {[%clk 0:02:18.4]} 16. axb5 {[%clk 0:02:33.2]}
16... Rad8 {[%clk 0:02:16.8]} 17. Rd1 {[%clk 0:02:30.5]} 17... Rfe8 {[%clk
0:02:16.5]} 18. Nf1 {[%clk 0:02:29.8]} 18... Nf8 {[%clk 0:02:09.2]} 19. Bg5
{[%clk 0:02:28.7]} 19... h6 {[%clk 0:02:07]} 20. Bxf6 {[%clk 0:02:27.7]} 20...
Qxf6 {[%clk 0:02:07.9]} 21. Ne3 {[%clk 0:02:26.6]} 21... Bxe3 {[%clk 0:02:07]}
22. Qxe3 {[%clk 0:02:26.3]} 22... Ne6 {[%clk 0:01:57.9]} 23. b4 {[%clk 0:02:24]}
23... axb4 {[%clk 0:01:54.2]} 24. cxb4 {[%clk 0:02:23.4]} 24... Nd4 {[%clk
0:01:51.8]} 25. Nxd4 {[%clk 0:02:22.7]} 25... exd4 {[%clk 0:01:51.9]} 26. Qd3
{[%clk 0:02:19.2]} 26... Qe5 {[%clk 0:01:51.4]} 27. f3 {[%clk 0:02:18]} 27...
Rd7 {[%clk 0:01:30.3]} 28. Re1 {[%clk 0:02:16.9]} 28... Qd6 {[%clk 0:01:26.8]}
29. Rab1 {[%clk 0:02:14.1]} 29... Ra8 {[%clk 0:01:21.3]} 30. Re2 {[%clk
0:02:08.4]} 30... Ra4 {[%clk 0:01:18.7]} 31. e5 {[%clk 0:02:05.9]} 31... Qd5
{[%clk 0:01:14.2]} 32. Qe4 {[%clk 0:01:54.4]} 32... Qxe4 {[%clk 0:00:51.5]} 33.
Rxe4 {[%clk 0:01:52.8]} 33... d3 {[%clk 0:00:52.4]} 34. Kf1 {[%clk 0:01:51.1]}
34... Ra2 {[%clk 0:00:51.4]} 35. h4 {[%clk 0:01:46]} 35... d2 {[%clk 0:00:39.8]}
36. Rd1 {[%clk 0:01:43.2]} 36... Rc2 {[%clk 0:00:39.1]} 37. Ke2 {[%clk
0:01:42.4]} 37... Rd5 {[%clk 0:00:33.5]} 38. f4 {[%clk 0:01:40.8]} 38... Rb2
{[%clk 0:00:30.2]} 39. g4 {[%clk 0:01:37]} 39... Rxb5 {[%clk 0:00:24.3]} 40.
Rxd2 {[%clk 0:01:36.3]} 40... R5xb4 {[%clk 0:00:24.5]} 41. Rxb4 {[%clk
0:01:34.1]} 41... Rxb4 {[%clk 0:00:23.7]} 42. Ke3 {[%clk 0:01:33.8]} 42... c5
{[%clk 0:00:19.7]} 43. Rd8+ {[%clk 0:01:30]} 43... Kh7 {[%clk 0:00:19.5]} 44. h5
{[%clk 0:01:29.9]} 44... b5 {[%clk 0:00:13.5]} 45. Rd7 {[%clk 0:01:27.8]} 45...
c4 {[%clk 0:00:13.6]} 46. Rxf7 {[%clk 0:01:25.9]} 46... c3 {[%clk 0:00:14]} 47.
Kd3 {[%clk 0:01:25.2]} 47... Rc4 {[%clk 0:00:13.9]} 48. Kc2 {[%clk 0:01:22]}
48... b4 {[%clk 0:00:13.3]} 49. Rb7 {[%clk 0:01:17.2]} 49... Kg8 {[%clk
0:00:09.2]} 50. e6 {[%clk 0:01:14.3]} 50... Kf8 {[%clk 0:00:08.9]} 51. Rf7+
{[%clk 0:01:05.5]} 51... Kg8 {[%clk 0:00:07.8]} 52. Rb7 {[%clk 0:01:04.2]} 52...
Rxf4 {[%clk 0:00:07.5]} 53. e7 {[%clk 0:00:58.3]} 53... Kf7 {[%clk 0:00:06.8]}
54. Kb3 {[%clk 0:00:57.6]} 54... Rxg4 {[%clk 0:00:05.9]} 55. Rc7 {[%clk
0:00:45.1]} 55... Re4 {[%clk 0:00:05]} 56. Rb7 {[%clk 0:00:29.7]} 56... Rxe7
{[%clk 0:00:02.9]} 57. Rxb4 {[%clk 0:00:28.5]} 57... Re3 {[%clk 0:00:03.8]} 58.
Kc2 {[%clk 0:00:27.1]} 58... Rh3 {[%clk 0:00:04.1]} 59. Rb5 {[%clk 0:00:24.5]}
59... Kf6 {[%clk 0:00:04.4]} 60. Rc5 {[%clk 0:00:23.1]} 60... g6 {[%clk
0:00:04.4]} 61. Rc6+ {[%clk 0:00:21.4]} 61... Kg5 {[%clk 0:00:02.3]} 62. hxg6
{[%clk 0:00:20.6]} 62... Rg3 {[%clk 0:00:02]} 63. g7 {[%clk 0:00:18.3]} 63...
Kh4 {[%clk 0:00:02.2]} 64. Rc7 {[%clk 0:00:17.3]} 64... h5 {[%clk 0:00:01.8]}
65. Rd7 {[%clk 0:00:13.5]} 65... Kh3 {[%clk 0:00:02]} 66. Rd3 {[%clk 0:00:12.5]}
66... h4 {[%clk 0:00:01.7]} 67. g8=Q {[%clk 0:00:10.4]} 1-0

[Event "*** SCC Grand Prix: Titled Tuesday Blitz"]
[Site "Chess.com"]
[Date "2020.06.09"]
[Round "9"]
[White "tylityli"]
[Black "rugbyclub"]
[Result "1-0"]
[WhiteElo "2261"]
[BlackElo "2112"]
[TimeControl "180+1"]
[EndTime "10:47:56 PDT"]
[Termination "tylityli won on time"]

1. d4 {[%clk 0:02:52]} 1... Nf6 {[%clk 0:02:54.1]} 2. c4 {[%clk 0:02:51.7]} 2...
e6 {[%clk 0:02:54.3]} 3. Nc3 {[%clk 0:02:51.6]} 3... Bb4 {[%clk 0:02:53.3]} 4.
e3 {[%clk 0:02:51.6]} 4... O-O {[%clk 0:02:51.9]} 5. Ne2 {[%clk 0:02:50.4]} 5...
d5 {[%clk 0:02:48.5]} 6. a3 {[%clk 0:02:50.2]} 6... Bd6 {[%clk 0:02:46.9]} 7. c5
{[%clk 0:02:49.5]} 7... Be7 {[%clk 0:02:46.1]} 8. b4 {[%clk 0:02:49.4]} 8... a5
{[%clk 0:02:44.9]} 9. Bb2 {[%clk 0:02:48.9]} 9... Nbd7 {[%clk 0:02:42.2]} 10. f4
{[%clk 0:02:47.1]} 10... Re8 {[%clk 0:02:42.1]} 11. Ng3 {[%clk 0:02:41.9]} 11...
g6 {[%clk 0:02:41.6]} 12. b5 {[%clk 0:02:39.8]} 12... Nf8 {[%clk 0:02:38.4]} 13.
Bd3 {[%clk 0:02:37.7]} 13... N6d7 {[%clk 0:02:37.5]} 14. O-O {[%clk 0:02:35.6]}
14... f6 {[%clk 0:02:37.6]} 15. e4 {[%clk 0:02:32]} 15... c6 {[%clk 0:02:36.6]}
16. e5 {[%clk 0:02:21.5]} 16... fxe5 {[%clk 0:02:34.9]} 17. fxe5 {[%clk
0:02:19.6]} 17... cxb5 {[%clk 0:02:20]} 18. Nxb5 {[%clk 0:02:17.6]} 18... Nb8
{[%clk 0:02:15.5]} 19. Nd6 {[%clk 0:02:17.2]} 19... Bxd6 {[%clk 0:02:14.1]} 20.
cxd6 {[%clk 0:02:13.2]} 20... Nc6 {[%clk 0:02:14]} 21. Qf3 {[%clk 0:02:09.2]}
21... Qd7 {[%clk 0:02:12.9]} 22. Bb5 {[%clk 0:02:03.1]} 22... Qg7 {[%clk
0:02:12.6]} 23. h4 {[%clk 0:01:55.4]} 23... Bd7 {[%clk 0:02:10.8]} 24. Bd3
{[%clk 0:01:54.5]} 24... Bc8 {[%clk 0:01:46.4]} 25. Qf2 {[%clk 0:01:49.4]} 25...
Nd7 {[%clk 0:01:44.9]} 26. Bc1 {[%clk 0:01:48.2]} 26... Nb6 {[%clk 0:01:42.2]}
27. Bg5 {[%clk 0:01:46.3]} 27... Bd7 {[%clk 0:01:41.7]} 28. Bf6 {[%clk
0:01:45.6]} 28... Qh6 {[%clk 0:01:42]} 29. h5 {[%clk 0:01:44.3]} 29... Bc8
{[%clk 0:01:34.5]} 30. hxg6 {[%clk 0:01:43.1]} 30... hxg6 {[%clk 0:01:34.1]} 31.
Rad1 {[%clk 0:01:41.2]} 31... Nd7 {[%clk 0:01:33.9]} 32. Be7 {[%clk 0:01:32.9]}
32... Qg7 {[%clk 0:01:28.9]} 33. Bg5 {[%clk 0:01:28.7]} 33... Rb8 {[%clk
0:01:12.6]} 34. Qe3 {[%clk 0:01:28.4]} 34... b5 {[%clk 0:01:10.3]} 35. Bh6
{[%clk 0:01:21.6]} 35... Qh7 {[%clk 0:01:10]} 36. Nh5 {[%clk 0:01:20.1]} 36...
Nxd4 {[%clk 0:01:06.8]} 37. Nf6+ {[%clk 0:01:10.2]} 37... Nxf6 {[%clk
0:01:05.4]} 38. Rxf6 {[%clk 0:01:03.4]} 38... Nf5 {[%clk 0:01:05.1]} 39. Bxf5
{[%clk 0:01:01.6]} 39... exf5 {[%clk 0:01:03.2]} 40. Rxd5 {[%clk 0:00:56]} 40...
Be6 {[%clk 0:00:51.6]} 41. Rxe6 {[%clk 0:00:53.8]} 41... Rxe6 {[%clk 0:00:51]}
42. d7 {[%clk 0:00:54.2]} 42... Rd8 {[%clk 0:00:50.5]} 43. Bg5 {[%clk
0:00:54.1]} 43... Rxd7 {[%clk 0:00:48.9]} 44. Rc5 {[%clk 0:00:48.3]} 44... Rd1+
{[%clk 0:00:40.1]} 45. Kf2 {[%clk 0:00:47.7]} 45... Qd7 {[%clk 0:00:40]} 46. Bf6
{[%clk 0:00:43.4]} 46... Rd2+ {[%clk 0:00:31.6]} 47. Kf1 {[%clk 0:00:37.8]}
47... Ra2 {[%clk 0:00:18.9]} 48. Kg1 {[%clk 0:00:33.6]} 48... Ra1+ {[%clk
0:00:13.5]} 49. Kh2 {[%clk 0:00:33.4]} 49... Qh7+ {[%clk 0:00:12.3]} 50. Kg3
{[%clk 0:00:32.9]} 50... Rxf6 {[%clk 0:00:11]} 51. exf6 {[%clk 0:00:30.1]} 51...
f4+ {[%clk 0:00:09.4]} 52. Qxf4 {[%clk 0:00:25.8]} 52... Rxa3+ {[%clk
0:00:09.3]} 53. Kf2 {[%clk 0:00:18.6]} 53... Ra2+ {[%clk 0:00:05.5]} 54. Kg1
{[%clk 0:00:18.2]} 54... Ra1+ {[%clk 0:00:05.2]} 55. Kf2 {[%clk 0:00:17.7]}
55... Ra2+ {[%clk 0:00:05.7]} 56. Kg1 {[%clk 0:00:17.3]} 56... Ra1+ {[%clk
0:00:05.5]} 57. Rc1 {[%clk 0:00:16.2]} 57... Rxc1+ {[%clk 0:00:04.9]} 58. Qxc1
{[%clk 0:00:16.5]} 58... Qa7+ {[%clk 0:00:03.5]} 59. Kh2 {[%clk 0:00:15.4]}
59... Kf7 {[%clk 0:00:04.1]} 60. Qg5 {[%clk 0:00:12.1]} 60... Qc7+ {[%clk
0:00:03.4]} 61. Kh3 {[%clk 0:00:11.4]} 61... Qd7+ {[%clk 0:00:03.1]} 62. Kh2
{[%clk 0:00:10.6]} 62... a4 {[%clk 0:00:03.8]} 63. Qf4 {[%clk 0:00:05.1]} 63...
a3 {[%clk 0:00:02.8]} 64. Qf2 {[%clk 0:00:03.1]} 64... Qd6+ {[%clk 0:00:02.3]}
65. Kh3 {[%clk 0:00:02.7]} 65... Qe6+ {[%clk 0:00:01.9]} 66. Kh2 {[%clk
0:00:03]} 66... Qxf6 {[%clk 0:00:02.2]} 67. Qa2+ {[%clk 0:00:03.2]} 67... Qe6
{[%clk 0:00:02]} 68. Qxa3 {[%clk 0:00:03.8]} 1-0

[Event "*** SCC Grand Prix: Titled Tuesday Blitz"]
[Site "Chess.com"]
[Date "2020.06.09"]
[Round "9"]
[White "OdChessWorld"]
[Black "Fandorine"]
[Result "1-0"]
[WhiteElo "2816"]
[BlackElo "2886"]
[TimeControl "180+1"]
[EndTime "10:47:59 PDT"]
[Termination "OdChessWorld won by resignation"]

1. d4 {[%clk 0:03:00.9]} 1... Nf6 {[%clk 0:03:00]} 2. Nf3 {[%clk 0:03:01.8]}
2... g6 {[%clk 0:02:57.3]} 3. g3 {[%clk 0:03:00.8]} 3... Bg7 {[%clk 0:02:57.7]}
4. Bg2 {[%clk 0:03:01.7]} 4... O-O {[%clk 0:02:57]} 5. O-O {[%clk 0:03:02.6]}
5... d6 {[%clk 0:02:57.7]} 6. c4 {[%clk 0:03:02.3]} 6... Nc6 {[%clk 0:02:57.2]}
7. Nc3 {[%clk 0:03:02.4]} 7... a6 {[%clk 0:02:57.5]} 8. Bf4 {[%clk 0:03:02.4]}
8... Rb8 {[%clk 0:02:57.7]} 9. Rc1 {[%clk 0:03:02.5]} 9... h6 {[%clk 0:02:57.9]}
10. Qd2 {[%clk 0:02:33.9]} 10... g5 {[%clk 0:02:49]} 11. Be3 {[%clk 0:02:34]}
11... Ng4 {[%clk 0:02:49.7]} 12. h3 {[%clk 0:02:34.2]} 12... Nxe3 {[%clk
0:02:50]} 13. Qxe3 {[%clk 0:02:35.1]} 13... e6 {[%clk 0:02:45.8]} 14. Qd2 {[%clk
0:02:28.2]} 14... Ne7 {[%clk 0:02:35.5]} 15. h4 {[%clk 0:02:19.1]} 15... g4
{[%clk 0:02:29.6]} 16. Nh2 {[%clk 0:02:18.7]} 16... f5 {[%clk 0:02:30.3]} 17. e4
{[%clk 0:02:09.2]} 17... Nc6 {[%clk 0:02:08.5]} 18. exf5 {[%clk 0:01:57]} 18...
Nxd4 {[%clk 0:01:44.1]} 19. fxe6 {[%clk 0:01:56.9]} 19... Bxe6 {[%clk
0:01:43.9]} 20. Rfe1 {[%clk 0:01:54.4]} 20... Bf5 {[%clk 0:01:20]} 21. Nd5
{[%clk 0:01:40.2]} 21... Kh8 {[%clk 0:01:16.8]} 22. Ne7 {[%clk 0:01:29.2]} 22...
Qd7 {[%clk 0:00:33.9]} 23. Nxf5 {[%clk 0:01:27.7]} 23... Qxf5 {[%clk 0:00:34.8]}
24. Re4 {[%clk 0:01:27.7]} 24... Nf3+ {[%clk 0:00:29.7]} 25. Bxf3 {[%clk
0:01:25.4]} 25... gxf3 {[%clk 0:00:30.2]} 26. Re3 {[%clk 0:01:15.5]} 26... Qh5
{[%clk 0:00:19.6]} 27. Qd3 {[%clk 0:01:08.4]} 27... Rbe8 {[%clk 0:00:19.5]} 28.
Rxe8 {[%clk 0:00:47.4]} 28... Qxe8 {[%clk 0:00:14.9]} 29. Nxf3 {[%clk
0:00:34.9]} 29... b6 {[%clk 0:00:14.4]} 30. b3 {[%clk 0:00:34.2]} 30... Qc6
{[%clk 0:00:11.7]} 31. Kg2 {[%clk 0:00:32.5]} 31... b5 {[%clk 0:00:09.7]} 32.
Re1 {[%clk 0:00:28.7]} 32... bxc4 {[%clk 0:00:08.1]} 33. bxc4 {[%clk 0:00:29.6]}
33... Qd7 {[%clk 0:00:06.4]} 34. Qe4 {[%clk 0:00:25.6]} 34... Qf7 {[%clk
0:00:06.6]} 35. Re2 {[%clk 0:00:25.4]} 35... a5 {[%clk 0:00:06.2]} 36. Nh2
{[%clk 0:00:20]} 36... a4 {[%clk 0:00:05.6]} 37. Ng4 {[%clk 0:00:19.5]} 37... a3
{[%clk 0:00:06.1]} 38. Ne3 {[%clk 0:00:19.6]} 38... Re8 {[%clk 0:00:06.3]} 39.
Qf3 {[%clk 0:00:19.1]} 39... Qxf3+ {[%clk 0:00:02.5]} 40. Kxf3 {[%clk 0:00:20]}
40... Rb8 {[%clk 0:00:02.8]} 41. Nd5 {[%clk 0:00:18.3]} 41... c6 {[%clk
0:00:03.3]} 42. Ne7 {[%clk 0:00:18]} 42... c5 {[%clk 0:00:02.1]} 43. Nf5 {[%clk
0:00:18.1]} 43... Bf8 {[%clk 0:00:01.9]} 44. Ke4 {[%clk 0:00:16.4]} 44... Rb2
{[%clk 0:00:01.7]} 45. Kd3 {[%clk 0:00:16.5]} 45... Kg8 {[%clk 0:00:02.3]} 46.
Rxb2 {[%clk 0:00:16.2]} 46... axb2 {[%clk 0:00:02.6]} 47. Kc2 {[%clk 0:00:16.8]}
47... Kf7 {[%clk 0:00:03.1]} 48. Kxb2 {[%clk 0:00:17]} 48... Ke6 {[%clk
0:00:04]} 49. g4 {[%clk 0:00:15.3]} 49... Ke5 {[%clk 0:00:04.9]} 50. f3 {[%clk
0:00:15.8]} 50... Kf4 {[%clk 0:00:05]} 51. Kc3 {[%clk 0:00:14.9]} 51... Kxf3
{[%clk 0:00:02.7]} 52. g5 {[%clk 0:00:14.6]} 52... hxg5 {[%clk 0:00:03.6]} 53.
hxg5 {[%clk 0:00:15.5]} 53... Kg4 {[%clk 0:00:04.3]} 54. Ne3+ {[%clk 0:00:15.5]}
54... Kxg5 {[%clk 0:00:04.9]} 55. a4 {[%clk 0:00:15.3]} 55... Be7 {[%clk
0:00:04.7]} 56. a5 {[%clk 0:00:15.7]} 56... Bd8 {[%clk 0:00:05.4]} 57. a6 {[%clk
0:00:16.1]} 57... Bb6 {[%clk 0:00:06.1]} 58. Nd5 {[%clk 0:00:16.3]} 58... Ba7
{[%clk 0:00:06.6]} 59. Kb3 {[%clk 0:00:16.7]} 59... Kf5 {[%clk 0:00:07]} 60.
Ne7+ {[%clk 0:00:16.9]} 60... Ke6 {[%clk 0:00:06.5]} 61. Nc6 {[%clk 0:00:17.8]}
61... Bb6 {[%clk 0:00:07.4]} 62. Ka4 {[%clk 0:00:12.7]} 62... Kd7 {[%clk
0:00:08]} 63. Kb5 {[%clk 0:00:12.8]} 63... Kc7 {[%clk 0:00:08.6]} 64. a7 {[%clk
0:00:11.5]} 64... Bxa7 {[%clk 0:00:08.2]} 65. Nxa7 {[%clk 0:00:12.4]} 65... Kd7
{[%clk 0:00:08.3]} 66. Nc6 {[%clk 0:00:10.5]} 66... Ke6 {[%clk 0:00:08.7]} 67.
Nd8+ {[%clk 0:00:10.4]} 67... Ke5 {[%clk 0:00:02.6]} 68. Nf7+ {[%clk 0:00:10.4]}
68... Ke6 {[%clk 0:00:02.9]} 69. Kc6 {[%clk 0:00:09.2]} 69... Ke7 {[%clk
0:00:02]} 1-0

[Event "*** SCC Grand Prix: Titled Tuesday Blitz"]
[Site "Chess.com"]
[Date "2020.06.09"]
[Round "9"]
[White "ChessWarrior7197"]
[Black "Firouzja2003"]
[Result "1/2-1/2"]
[WhiteElo "2969"]
[BlackElo "3139"]
[TimeControl "180+1"]
[EndTime "10:48:00 PDT"]
[Termination "Game drawn by stalemate"]

1. e4 {[%clk 0:03:00.9]} 1... e6 {[%clk 0:03:00.1]} 2. d4 {[%clk 0:03:00.5]}
2... d5 {[%clk 0:03:00.6]} 3. Nc3 {[%clk 0:03:00.4]} 3... Nf6 {[%clk 0:03:00.9]}
4. e5 {[%clk 0:03:00.4]} 4... Nfd7 {[%clk 0:03:01.1]} 5. f4 {[%clk 0:03:00.5]}
5... c5 {[%clk 0:03:01.5]} 6. Nf3 {[%clk 0:03:01]} 6... Nc6 {[%clk 0:03:02]} 7.
Be3 {[%clk 0:03:01.1]} 7... Be7 {[%clk 0:03:02.6]} 8. Qd2 {[%clk 0:02:57.3]}
8... a6 {[%clk 0:03:03]} 9. Be2 {[%clk 0:02:56]} 9... b5 {[%clk 0:03:01]} 10.
O-O {[%clk 0:02:55.5]} 10... b4 {[%clk 0:02:57.5]} 11. Nd1 {[%clk 0:02:55]}
11... Qb6 {[%clk 0:02:49.1]} 12. c3 {[%clk 0:02:53.3]} 12... a5 {[%clk
0:02:49.2]} 13. c4 {[%clk 0:02:41.4]} 13... dxc4 {[%clk 0:02:40.6]} 14. d5
{[%clk 0:02:30.7]} 14... exd5 {[%clk 0:02:38.4]} 15. Qxd5 {[%clk 0:02:29.6]}
15... Qc7 {[%clk 0:02:27.8]} 16. Bxc4 {[%clk 0:02:28.5]} 16... O-O {[%clk
0:02:27.2]} 17. Qe4 {[%clk 0:02:08.8]} 17... Nb6 {[%clk 0:02:15.1]} 18. Bb5
{[%clk 0:01:40.2]} 18... Bb7 {[%clk 0:02:01.7]} 19. Qc2 {[%clk 0:01:39.7]} 19...
Rac8 {[%clk 0:01:37.8]} 20. Nf2 {[%clk 0:01:35]} 20... Nd5 {[%clk 0:01:14.2]}
21. Bd2 {[%clk 0:01:29.5]} 21... Nd4 {[%clk 0:01:13.6]} 22. Nxd4 {[%clk
0:01:27.2]} 22... cxd4 {[%clk 0:01:14.5]} 23. Qxc7 {[%clk 0:01:24.2]} 23... Rxc7
{[%clk 0:01:15.4]} 24. Rfc1 {[%clk 0:01:23.6]} 24... Rfc8 {[%clk 0:01:14.8]} 25.
Rxc7 {[%clk 0:01:21.8]} 25... Rxc7 {[%clk 0:01:15.7]} 26. Rc1 {[%clk 0:01:22.2]}
26... Rxc1+ {[%clk 0:01:09]} 27. Bxc1 {[%clk 0:01:23.1]} 27... Ne3 {[%clk
0:01:08.9]} 28. Bxe3 {[%clk 0:01:17.8]} 28... dxe3 {[%clk 0:01:08.7]} 29. Nd1
{[%clk 0:01:18.2]} 29... g5 {[%clk 0:00:45]} 30. fxg5 {[%clk 0:01:03.6]} 30...
Bxg5 {[%clk 0:00:42.8]} 31. b3 {[%clk 0:00:51.7]} 31... Bf4 {[%clk 0:00:35.2]}
32. g3 {[%clk 0:00:46]} 32... Bxe5 {[%clk 0:00:18.9]} 33. Nxe3 {[%clk
0:00:45.8]} 33... Bd4 {[%clk 0:00:19.5]} 34. Kf2 {[%clk 0:00:46]} 34... Be4
{[%clk 0:00:20.1]} 35. Ke2 {[%clk 0:00:44.8]} 35... Bb1 {[%clk 0:00:18.4]} 36.
Nc4 {[%clk 0:00:40.8]} 36... Bg1 {[%clk 0:00:12.6]} 37. h4 {[%clk 0:00:38.5]}
37... Bxa2 {[%clk 0:00:11.1]} 38. Ba4 {[%clk 0:00:36.1]} 38... Bb1 {[%clk
0:00:09.7]} 39. Nxa5 {[%clk 0:00:35.7]} 39... Bf5 {[%clk 0:00:05.7]} 40. Bb5
{[%clk 0:00:32.3]} 40... Bb6 {[%clk 0:00:04]} 41. Nc4 {[%clk 0:00:29.5]} 41...
Bc7 {[%clk 0:00:04]} 42. Kf3 {[%clk 0:00:27.7]} 42... h5 {[%clk 0:00:04.3]} 43.
Ne3 {[%clk 0:00:25.8]} 43... Bc8 {[%clk 0:00:04.3]} 44. Bc4 {[%clk 0:00:24.7]}
44... Kg7 {[%clk 0:00:04.2]} 45. Bd5 {[%clk 0:00:23.7]} 45... Bb6 {[%clk
0:00:04.2]} 46. Nc4 {[%clk 0:00:21]} 46... Bc7 {[%clk 0:00:03.6]} 47. Nd2 {[%clk
0:00:20]} 47... Bg4+ {[%clk 0:00:03.6]} 48. Kf2 {[%clk 0:00:19.5]} 48... f5
{[%clk 0:00:03.9]} 49. Nf3 {[%clk 0:00:14.3]} 49... Kf6 {[%clk 0:00:04.1]} 50.
Bc4 {[%clk 0:00:11.8]} 50... Bb6+ {[%clk 0:00:03.9]} 51. Kg2 {[%clk 0:00:11.2]}
51... Be3 {[%clk 0:00:03.4]} 52. Ne1 {[%clk 0:00:09.9]} 52... Ke5 {[%clk
0:00:03.1]} 53. Nd3+ {[%clk 0:00:09.8]} 53... Kd4 {[%clk 0:00:01.8]} 54. Nxb4
{[%clk 0:00:10.7]} 54... f4 {[%clk 0:00:02.1]} 55. Nc2+ {[%clk 0:00:10.3]} 55...
Kc3 {[%clk 0:00:02.5]} 56. Ne1 {[%clk 0:00:07.5]} 56... Kd2 {[%clk 0:00:01.9]}
57. Nf3+ {[%clk 0:00:07.5]} 57... Bxf3+ {[%clk 0:00:02.5]} 58. Kxf3 {[%clk
0:00:08.4]} 58... fxg3 {[%clk 0:00:03.1]} 59. Kxg3 {[%clk 0:00:09.3]} 59... Bc5
{[%clk 0:00:03]} 60. Bf7 {[%clk 0:00:09]} 60... Bd6+ {[%clk 0:00:03.7]} 61. Kh3
{[%clk 0:00:08.8]} 61... Ke3 {[%clk 0:00:04.3]} 62. Bxh5 {[%clk 0:00:08.6]}
62... Kf4 {[%clk 0:00:05]} 63. Bf7 {[%clk 0:00:08.6]} 63... Ke5 {[%clk
0:00:05.5]} 64. Bc4 {[%clk 0:00:09.5]} 64... Kf6 {[%clk 0:00:06]} 65. Kg4 {[%clk
0:00:10.4]} 65... Kg7 {[%clk 0:00:06.7]} 66. h5 {[%clk 0:00:11.3]} 66... Kh8
{[%clk 0:00:07.3]} 67. Bd3 {[%clk 0:00:12.2]} 67... Bf8 {[%clk 0:00:08]} 68. Bg6
{[%clk 0:00:13.1]} 68... Be7 {[%clk 0:00:08.6]} 69. Kf5 {[%clk 0:00:14]} 69...
Bf8 {[%clk 0:00:09.3]} 70. Ke6 {[%clk 0:00:14.9]} 70... Ba3 {[%clk 0:00:10]} 71.
Kd5 {[%clk 0:00:15.8]} 71... Bf8 {[%clk 0:00:10.6]} 72. Kc4 {[%clk 0:00:16.7]}
72... Ba3 {[%clk 0:00:11.2]} 73. b4 {[%clk 0:00:17.6]} 73... Bxb4 {[%clk
0:00:11.4]} 74. Kxb4 {[%clk 0:00:18.5]} 74... Kg7 {[%clk 0:00:11.7]} 75. Kc5
{[%clk 0:00:19.4]} 75... Kh8 {[%clk 0:00:12.4]} 76. Kd6 {[%clk 0:00:20.3]} 76...
Kg7 {[%clk 0:00:13.1]} 77. Ke7 {[%clk 0:00:21.2]} 77... Kh8 {[%clk 0:00:14]} 78.
Kf7 {[%clk 0:00:22.1]} 1/2-1/2